fUSD/lending_fUSD_20250602
["ID","MTS","AMOUNT","RATE_DAILY","PERIOD"]
[363733408,1748853042855,-420.0,0.00019315,2]
[363733410,1748853042863,-885.06,0.00019315,2]
[363733412,1748853042873,-420.0,0.00019315,2]
[363733414,1748853042882,-420.0,0.00019315,2]
[363733416,1748853042892,-420.0,0.00019315,2]
[363733418,1748853042901,-420.0,0.00019315,2]
[363733420,1748853042910,-420.0,0.00019315,2]
[363733422,1748853042919,-420.0,0.00019315,2]
[363733424,1748853042928,-641.73,0.00019315,2]
[363733425,1748853042938,-420.0,0.00019315,2]
[363733426,1748853042948,-432.93,0.00019315,2]
[363733427,1748853042958,-474.32,0.00019315,2]
[363733428,1748853042968,-420.0,0.00019315,2]
[363733429,1748853042979,-420.0,0.00019315,2]
[363733430,1748853042988,-781.54,0.00019315,2]
[363733431,1748853042998,-420.0,0.00019315,2]
[363733432,1748853043007,-420.0,0.00019315,2]
[363733434,1748853043016,-246.33737635,0.00019315,2]
[363733435,1748853043026,-420.0,0.00019315,2]
[363733437,1748853043035,-420.0,0.00019315,2]
[363733439,1748853043044,-420.0,0.00019315,2]
[363733440,1748853043053,-420.0,0.00019315,2]
[363733442,1748853043063,-1503.73,0.00019315,2]
[363733444,1748853043072,-420.0,0.00019315,2]
[363733446,1748853043081,-420.0,0.00019315,2]
[363733448,1748853043091,-420.0,0.00019315,2]
[363733450,1748853043101,-420.0,0.00019315,2]
[363733452,1748853043111,-1297.92,0.00019315,2]
[363733455,1748853043120,-420.0,0.00019315,2]
[363733457,1748853043130,-420.0,0.00019315,2]
[363733459,1748853043140,-420.0,0.00019315,2]
[363733461,1748853043149,-420.0,0.00019315,2]
[363733463,1748853043159,-420.0,0.00019315,2]
[363733465,1748853043168,-420.0,0.00019315,2]
[363733467,1748853043178,-602.69,0.00019315,2]
[363733469,1748853043187,-2431.93,0.00019315,2]
[363733471,1748853043198,-420.0,0.00019315,2]
[363733473,1748853043207,-420.0,0.00019315,2]
[363733475,1748853043216,-761.19,0.00019315,2]
[363733477,1748853043225,-420.0,0.00019315,2]
[363733479,1748853043234,-420.0,0.00019315,2]
[363733481,1748853043244,-420.0,0.00019315,2]
[363733484,1748853043253,-420.0,0.00019315,2]
[363733487,1748853043263,-420.0,0.00019315,2]
[363733490,1748853043273,-525.90627377,0.00019315,2]
[363733493,1748853043282,-1010.32,0.00019315,2]
[363733495,1748853043292,-420.0,0.00019315,2]
[363733497,1748853043302,-420.0,0.00019315,2]
[363733499,1748853043313,-9139.5,0.00019315,2]
[363733501,1748853043323,-1872.83,0.00019315,2]
[363733503,1748853043332,-420.0,0.00019315,2]
[363733505,1748853043342,-420.0,0.00019315,2]
[363733507,1748853043351,-541.68915537,0.00019315,2]
[363733509,1748853043360,-492.82,0.00019315,2]
[363733511,1748853043369,-420.0,0.00019315,2]
[363733513,1748853043380,-763.18,0.00019315,2]
[363733515,1748853043389,-430.16,0.00019315,2]
[363733517,1748853043399,-3366.98,0.00019315,2]
[363733519,1748853043409,-420.0,0.00019315,2]
[363733521,1748853043418,-707.54,0.00019315,2]
[363733523,1748853043428,-420.0,0.00019315,2]
[363733525,1748853043437,-420.0,0.00019315,2]
[363733527,1748853043447,-420.0,0.00019315,2]
[363733529,1748853043457,-637.61,0.00019315,2]
[363733531,1748853043467,-1659.73,0.00019339,2]
[363733533,1748853043476,-9999.99,0.00019339,2]
[363733535,1748853043485,-29999.99,0.00019339,2]
[363733537,1748853043495,-19999.99,0.00019339,2]
[363733539,1748853043504,-3200.0,0.000194,7]
[363733541,1748853043514,-163.03316403,0.00019435,2]
[363733543,1748853043524,-500.0,0.00019451,2]
[363733545,1748853043535,-673.01,0.00019451,2]
[363733547,1748853043547,-420.0,0.00019452,2]
[363733549,1748853043558,-442.79,0.00019452,2]
[363733550,1748853043567,-420.0,0.00019452,2]
[363733552,1748853043577,-461.99,0.00019452,2]
[363733554,1748853043587,-420.0,0.00019452,2]
[363733556,1748853043597,-420.0,0.00019452,2]
[363733558,1748853043607,-420.0,0.00019452,2]
[363733560,1748853043617,-311.21,0.00019452,2]
[363733562,1748853043625,-420.0,0.00019452,2]
[363733564,1748853043635,-963.13,0.00019452,2]
[363733566,1748853043646,-547.32,0.00019452,2]
[363733568,1748853043656,-831.74,0.00019452,2]
[363733570,1748853043665,-196.61,0.00019452,2]
[363733572,1748853043674,-420.0,0.00019452,2]
[363733574,1748853043684,-420.0,0.00019452,2]
[363733576,1748853043694,-420.0,0.00019452,2]
[363733578,1748853043703,-420.0,0.00019452,2]
[363733580,1748853043713,-420.0,0.00019452,2]
[363733582,1748853043722,-420.0,0.00019452,2]
[363733584,1748853043731,-420.0,0.00019452,2]
[363733586,1748853043741,-420.0,0.00019452,2]
[363733588,1748853043750,-420.0,0.00019452,2]
[363733590,1748853043760,-420.0,0.00019452,2]
[363733592,1748853043769,-420.0,0.00019452,2]
[363733594,1748853043779,-420.0,0.00019452,2]
[363733596,1748853043793,-158.0,0.00019452,2]
[363733598,1748853043803,-319.74792185,0.00019452,2]
[363733600,1748853043813,-420.0,0.00019452,2]
[363733602,1748853043822,-316.3821985,0.00019452,2]
[363733605,1748853043831,-420.0,0.00019452,2]
[363733607,1748853043840,-420.0,0.00019452,2]
[363733608,1748853043849,-1681.64,0.00019452,2]
[363733610,1748853043859,-420.0,0.00019452,2]
[363733612,1748853043868,-420.0,0.00019452,2]
[363733614,1748853043877,-420.0,0.00019452,2]
[363733616,1748853043886,-420.0,0.00019452,2]
[363733618,1748853043895,-420.0,0.00019452,2]
[363733620,1748853043905,-420.0,0.00019452,2]
[363733622,1748853043915,-420.0,0.00019452,2]
[363733624,1748853043924,-420.0,0.00019452,2]
[363733626,1748853043933,-420.0,0.00019452,2]
[363733628,1748853043943,-686.48,0.00019452,2]
[363733630,1748853043952,-420.0,0.00019452,2]
[363733632,1748853043961,-526.68,0.00019452,2]
[363733634,1748853043970,-1223.01,0.00019452,2]
[363733636,1748853043979,-535.65,0.00019452,2]
[363733638,1748853043987,-420.0,0.00019452,2]
[363733640,1748853043995,-420.0,0.00019452,2]
[363733642,1748853044004,-420.0,0.00019452,2]
[363733644,1748853044014,-257.91035816,0.00019452,2]
[363733646,1748853044023,-420.0,0.00019452,2]
[363733648,1748853044032,-1903.86,0.00019452,2]
[363733650,1748853044045,-1297.59,0.00019452,2]
[363733652,1748853044054,-420.0,0.00019452,2]
[363733654,1748853044063,-420.0,0.00019452,2]
[363733656,1748853044072,-533.19737019,0.00019452,2]
[363733658,1748853044081,-418.78792347,0.00019452,2]
[363733660,1748853044091,-778.18,0.00019452,2]
[363733662,1748853044102,-420.0,0.00019452,2]
[363733664,1748853044111,-420.0,0.00019452,2]
[363733666,1748853044121,-306.67,0.00019452,2]
[363733668,1748853044130,-420.0,0.00019452,2]
[363733670,1748853044139,-420.0,0.00019452,2]
[363733672,1748853044148,-461.16,0.00019452,2]
[363733674,1748853044158,-420.0,0.00019452,2]
[363733675,1748853044167,-420.0,0.00019452,2]
[363733678,1748853044177,-527.2,0.00019452,2]
[363733679,1748853044186,-420.0,0.00019452,2]
[363733681,1748853044195,-420.0,0.00019452,2]
[363733684,1748853044205,-572.57,0.00019452,2]
[363733686,1748853044215,-420.0,0.00019452,2]
[363733688,1748853044225,-420.0,0.00019452,2]
[363733690,1748853044234,-2082.15,0.00019452,2]
[363733692,1748853044244,-410.46810516,0.00019452,2]
[363733694,1748853044253,-420.0,0.00019452,2]
[363733696,1748853044265,-1644.46,0.00019452,2]
[363733698,1748853044274,-420.0,0.00019452,2]
[363733700,1748853044283,-420.0,0.00019452,2]
[363733702,1748853044295,-604.93,0.00019452,2]
[363733704,1748853044304,-420.0,0.00019452,2]
[363733726,1748853044509,-420.0,0.00019452,2]
[363733729,1748853044520,-420.0,0.00019452,2]
[363733731,1748853044530,-1460.28,0.00019452,2]
[363733733,1748853044540,-5378.19,0.00019452,2]
[363733735,1748853044550,-372.4609239,0.00019452,2]
[363733737,1748853044564,-420.0,0.00019452,2]
[363733739,1748853044573,-420.0,0.00019452,2]
[363733741,1748853044583,-556.28,0.00019452,2]
[363733743,1748853044592,-783.28,0.00019452,2]
[363733745,1748853044602,-420.0,0.00019452,2]
[363733747,1748853044612,-575.74,0.00019452,2]
[363733749,1748853044622,-420.0,0.00019452,2]
[363733751,1748853044632,-885.06,0.00019452,2]
[363733753,1748853044641,-420.0,0.00019452,2]
[363733755,1748853044651,-420.0,0.00019452,2]
[363733757,1748853044661,-420.0,0.00019452,2]
[363733759,1748853044670,-362.36,0.00019452,2]
[363733761,1748853044680,-420.0,0.00019452,2]
[363733763,1748853044690,-420.0,0.00019452,2]
[363733765,1748853044700,-641.73,0.00019452,2]
[363733767,1748853044710,-420.0,0.00019452,2]
[363733769,1748853044720,-432.93,0.00019452,2]
[363733771,1748853044729,-420.0,0.00019452,2]
[363733773,1748853044739,-420.0,0.00019452,2]
[363733775,1748853044749,-781.54,0.00019452,2]
[363733777,1748853044759,-420.0,0.00019452,2]
[363733779,1748853044769,-420.0,0.00019452,2]
[363733781,1748853044779,-420.0,0.00019452,2]
[363733783,1748853044789,-420.0,0.00019452,2]
[363733785,1748853044799,-420.0,0.00019452,2]
[363733787,1748853044807,-1503.73,0.00019452,2]
[363733789,1748853044817,-420.0,0.00019452,2]
[363733791,1748853044827,-420.0,0.00019452,2]
[363733793,1748853044837,-420.0,0.00019452,2]
[363733795,1748853044847,-420.0,0.00019452,2]
[363733797,1748853044857,-1297.92,0.00019452,2]
[363733799,1748853044867,-420.0,0.00019452,2]
[363733801,1748853044877,-420.0,0.00019452,2]
[363733802,1748853044886,-420.0,0.00019452,2]
[363733804,1748853044896,-420.0,0.00019452,2]
[363733806,1748853044906,-420.0,0.00019452,2]
[363733808,1748853044916,-420.0,0.00019452,2]
[363733811,1748853044926,-602.69,0.00019452,2]
[363733813,1748853044935,-2431.93,0.00019452,2]
[363733814,1748853044944,-420.0,0.00019452,2]
[363733816,1748853044954,-420.0,0.00019452,2]
[363733818,1748853044964,-761.19,0.00019452,2]
[363733820,1748853044973,-420.0,0.00019452,2]
[363733822,1748853044983,-568.72082887,0.00019452,2]
[363733824,1748853044992,-420.0,0.00019452,2]
[363733826,1748853045002,-420.0,0.00019452,2]
[363733828,1748853045011,-442.0625276,0.00019452,2]
[363733830,1748853045021,-1010.32,0.00019452,2]
[363733832,1748853045031,-420.0,0.00019452,2]
[363733835,1748853045043,-9139.5,0.00019452,2]
[363733837,1748853045053,-1872.83,0.00019452,2]
[363733839,1748853045063,-420.0,0.00019452,2]
[363733841,1748853045073,-420.0,0.00019452,2]
[363733842,1748853045083,-420.0,0.00019452,2]
[363733844,1748853045092,-763.18,0.00019452,2]
[363733846,1748853045102,-3366.98,0.00019452,2]
[363733849,1748853045113,-707.54,0.00019452,2]
[363733851,1748853045124,-420.0,0.00019452,2]
[363733853,1748853045134,-420.0,0.00019452,2]
[363733855,1748853045144,-420.0,0.00019452,2]
[363733857,1748853045154,-637.61,0.00019452,2]
[363733859,1748853045164,-4000.0,0.000195,7]
[363733861,1748853045174,-1000.0,0.000195,2]
[363733863,1748853045185,-163.03316402,0.00019513,2]
[363733865,1748853045195,-163.10478396,0.00019576,2]
[363733867,1748853045207,-292.43924463,0.00019588,2]
[363733869,1748853045218,-500.0,0.00019588,2]
[363733870,1748853045228,-298.18608908,0.00019588,2]
[363733871,1748853045237,-500.0,0.00019588,2]
[363733872,1748853045247,-500.0,0.00019588,2]
[363733873,1748853045257,-500.0,0.00019588,2]
[363733874,1748853045266,-500.0,0.00019588,2]
[363733875,1748853045275,-547.6728404,0.00019588,2]
[363733876,1748853045284,-500.0,0.00019588,2]
[363733877,1748853045295,-500.0,0.00019588,2]
[363733878,1748853045305,-500.0,0.00019588,2]
[363733879,1748853045319,-500.0,0.00019588,2]
[363733881,1748853045329,-500.0,0.00019588,2]
[363733883,1748853045339,-500.0,0.00019588,2]
[363733885,1748853045349,-500.0,0.00019588,2]
[363733887,1748853045359,-500.0,0.00019588,2]
[363733889,1748853045368,-500.0,0.00019588,2]
[363733891,1748853045377,-500.0,0.00019588,2]
[363733893,1748853045387,-500.0,0.00019588,2]
[363733895,1748853045398,-500.0,0.00019588,2]
[363733897,1748853045407,-500.0,0.00019588,2]
[363733899,1748853045416,-500.0,0.00019588,2]
[363733901,1748853045426,-500.0,0.00019588,2]
[363733903,1748853045435,-500.0,0.00019588,2]
[363733905,1748853045445,-500.0,0.00019588,2]
[363733907,1748853045455,-500.0,0.00019588,2]
[363733909,1748853045464,-500.0,0.00019588,2]
[363733911,1748853045474,-500.0,0.00019588,2]
[363733913,1748853045483,-500.0,0.00019588,2]
[363733915,1748853045493,-500.0,0.00019588,2]
[363733917,1748853045503,-472.59101165,0.00019588,2]
[363733919,1748853045512,-500.0,0.00019588,2]
[363733921,1748853045522,-500.0,0.00019588,2]
[363733923,1748853045532,-500.0,0.00019588,2]
[363733925,1748853045543,-500.0,0.00019588,2]
[363733927,1748853045553,-500.0,0.00019588,2]
[363733929,1748853045563,-500.0,0.00019588,2]
[363733931,1748853045573,-500.0,0.00019588,2]
[363733933,1748853045583,-500.0,0.00019588,2]
[363733935,1748853045593,-500.0,0.00019588,2]
[363733937,1748853045603,-500.0,0.00019588,2]
[363733939,1748853045614,-500.0,0.00019588,2]
[363733941,1748853045624,-500.0,0.00019588,2]
[363733943,1748853045634,-500.0,0.00019588,2]
[363733945,1748853045644,-500.0,0.00019588,2]
[363733947,1748853045654,-500.0,0.00019588,2]
[363733949,1748853045664,-500.0,0.00019588,2]
[363733951,1748853045674,-500.0,0.00019588,2]
[363733953,1748853045683,-500.0,0.00019588,2]
[363733955,1748853045693,-500.0,0.00019588,2]
[363733957,1748853045702,-500.0,0.00019588,2]
[363733959,1748853045712,-500.0,0.00019588,2]
[363733961,1748853045721,-500.0,0.00019588,2]
[363733963,1748853045730,-500.0,0.00019588,2]
[363733965,1748853045739,-500.0,0.00019588,2]
[363733967,1748853045749,-500.0,0.00019588,2]
[363733969,1748853045759,-500.0,0.00019588,2]
[363733971,1748853045768,-500.0,0.00019588,2]
[363733973,1748853045778,-500.0,0.00019588,2]
[363733975,1748853045788,-500.0,0.00019588,2]
[363733977,1748853045797,-500.0,0.00019588,2]
[363733979,1748853045807,-500.0,0.00019588,2]
[363733981,1748853045816,-500.0,0.00019588,2]
[363733983,1748853045827,-600.0,0.00019588,2]
[363733985,1748853045837,-500.0,0.00019588,2]
[363733987,1748853045846,-500.0,0.00019588,2]
[363733989,1748853045855,-500.0,0.00019588,2]
[363733991,1748853045865,-500.0,0.00019588,2]
[363733993,1748853045874,-500.0,0.00019588,2]
[363733995,1748853045884,-500.0,0.00019588,2]
[363733997,1748853045893,-420.0,0.00019589,2]
[363733999,1748853045903,-420.0,0.00019589,2]
[363734001,1748853045913,-461.99,0.00019589,2]
[363734003,1748853045922,-420.0,0.00019589,2]
[363734005,1748853045931,-420.0,0.00019589,2]
[363734007,1748853045940,-367.24,0.00019589,2]
[363734009,1748853045950,-963.13,0.00019589,2]
[363734011,1748853045959,-547.32,0.00019589,2]
[363734013,1748853045969,-831.74,0.00019589,2]
[363734015,1748853045979,-420.0,0.00019589,2]
[363734017,1748853045988,-465.14,0.00019589,2]
[363734019,1748853045997,-420.0,0.00019589,2]
[363734021,1748853046007,-482.5430764,0.00019589,2]
[363734023,1748853046016,-420.0,0.00019589,2]
[363734025,1748853046025,-420.0,0.00019589,2]
[363734027,1748853046035,-207.07084825,0.00019589,2]
[363734029,1748853046045,-420.0,0.00019589,2]
[363734031,1748853046054,-420.0,0.00019589,2]
[363734033,1748853046063,-420.0,0.00019589,2]
[363734035,1748853046073,-420.0,0.00019589,2]
[363734037,1748853046082,-420.0,0.00019589,2]
[363734039,1748853046092,-1681.64,0.00019589,2]
[363734041,1748853046101,-420.0,0.00019589,2]
[363734042,1748853046111,-420.0,0.00019589,2]
[363734045,1748853046121,-420.0,0.00019589,2]
[363734047,1748853046130,-420.0,0.00019589,2]
[363734048,1748853046140,-420.0,0.00019589,2]
[363734050,1748853046149,-420.0,0.00019589,2]
[363734052,1748853046158,-420.0,0.00019589,2]
[363734054,1748853046168,-263.74,0.00019589,2]
[363734056,1748853046177,-686.48,0.00019589,2]
[363734058,1748853046187,-420.0,0.00019589,2]
[363734060,1748853046196,-526.68,0.00019589,2]
[363734062,1748853046206,-1223.01,0.00019589,2]
[363734064,1748853046216,-535.65,0.00019589,2]
[363734066,1748853046225,-215.79,0.00019589,2]
[363734068,1748853046235,-420.0,0.00019589,2]
[363734070,1748853046244,-420.0,0.00019589,2]
[363734072,1748853046253,-420.0,0.00019589,2]
[363734074,1748853046263,-1903.86,0.00019589,2]
[363734076,1748853046272,-1297.59,0.00019589,2]
[363734078,1748853046281,-420.0,0.00019589,2]
[363734080,1748853046291,-420.0,0.00019589,2]
[363734082,1748853046301,-778.18,0.00019589,2]
[363734084,1748853046312,-420.0,0.00019589,2]
[363734086,1748853046323,-420.0,0.00019589,2]
[363734088,1748853046332,-159.16257028,0.00019589,2]
[363734090,1748853046341,-420.0,0.00019589,2]
[363734092,1748853046352,-461.16,0.00019589,2]
[363734094,1748853046362,-420.0,0.00019589,2]
[363734096,1748853046371,-527.2,0.00019589,2]
[363734098,1748853046381,-420.0,0.00019589,2]
[363734100,1748853046391,-420.0,0.00019589,2]
[363734102,1748853046401,-572.57,0.00019589,2]
[363734104,1748853046411,-420.0,0.00019589,2]
[363734106,1748853046421,-433.99,0.00019589,2]
[363734108,1748853046430,-2082.15,0.00019589,2]
[363734110,1748853046440,-420.0,0.00019589,2]
[363734112,1748853046449,-1644.46,0.00019589,2]
[363734114,1748853046459,-420.0,0.00019589,2]
[363734116,1748853046468,-420.0,0.00019589,2]
[363734118,1748853046478,-604.93,0.00019589,2]
[363734120,1748853046488,-420.0,0.00019589,2]
[363734122,1748853046497,-420.0,0.00019589,2]
[363734124,1748853046507,-1460.28,0.00019589,2]
[363734126,1748853046516,-5378.19,0.00019589,2]
[363734128,1748853046526,-420.0,0.00019589,2]
[363734130,1748853046536,-420.0,0.00019589,2]
[363734132,1748853046545,-783.28,0.00019589,2]
[363734134,1748853046555,-575.74,0.00019589,2]
[363734136,1748853046565,-420.0,0.00019589,2]
[363734137,1748853046574,-420.0,0.00019589,2]
[363734139,1748853046584,-885.06,0.00019589,2]
[363734141,1748853046594,-420.0,0.00019589,2]
[363734143,1748853046603,-420.0,0.00019589,2]
[363734145,1748853046613,-420.0,0.00019589,2]
[363734147,1748853046622,-641.73,0.00019589,2]
[363734149,1748853046631,-420.0,0.00019589,2]
[363734151,1748853046641,-432.93,0.00019589,2]
[363734153,1748853046650,-420.0,0.00019589,2]
[363734155,1748853046660,-420.0,0.00019589,2]
[363734157,1748853046669,-781.54,0.00019589,2]
[363734159,1748853046679,-420.0,0.00019589,2]
[363734161,1748853046688,-420.0,0.00019589,2]
[363734163,1748853046699,-420.0,0.00019589,2]
[363734165,1748853046709,-420.0,0.00019589,2]
[363734167,1748853046718,-1503.73,0.00019589,2]
[363734169,1748853046728,-420.0,0.00019589,2]
[363734171,1748853046737,-420.0,0.00019589,2]
[363734173,1748853046747,-420.0,0.00019589,2]
[363734175,1748853046756,-420.0,0.00019589,2]
[363734177,1748853046765,-1297.92,0.00019589,2]
[363734179,1748853046774,-420.0,0.00019589,2]
[363734181,1748853046783,-420.0,0.00019589,2]
[363734183,1748853046794,-420.0,0.00019589,2]
[363734185,1748853046803,-420.0,0.00019589,2]
[363734187,1748853046812,-420.0,0.00019589,2]
[363734189,1748853046821,-420.0,0.00019589,2]
[363734191,1748853046832,-602.69,0.00019589,2]
[363734193,1748853046842,-2431.93,0.00019589,2]
[363734195,1748853046851,-420.0,0.00019589,2]
[363734197,1748853046861,-474.46,0.00019589,2]
[363734199,1748853046870,-761.19,0.00019589,2]
[363734207,1748853046932,-420.0,0.00019589,2]
[363734209,1748853046942,-420.0,0.00019589,2]
[363734211,1748853046951,-420.0,0.00019589,2]
[363734213,1748853046961,-1010.32,0.00019589,2]
[363734215,1748853046970,-482.81851849,0.00019589,2]
[363734217,1748853046979,-9139.5,0.00019589,2]
[363734219,1748853046988,-1872.83,0.00019589,2]
[363734221,1748853046998,-420.0,0.00019589,2]
[363734223,1748853047007,-420.0,0.00019589,2]
[363734225,1748853047016,-420.0,0.00019589,2]
[363734227,1748853047025,-763.18,0.00019589,2]
[363734229,1748853047034,-3366.98,0.00019589,2]
[363734231,1748853047045,-420.0,0.00019589,2]
[363734233,1748853047054,-707.54,0.00019589,2]
[363734235,1748853047063,-420.0,0.00019589,2]
[363734236,1748853047072,-637.61,0.00019589,2]
[363734239,1748853047081,-500.0,0.00019589,2]
[363734240,1748853047090,-163.03316402,0.0001959,2]
[363734242,1748853047099,-1891.300388,0.00019596,2]
[363734244,1748853047108,-989.62983762,0.000196,2]
[363734246,1748853047118,-800.0,0.000196,7]
[363734248,1748853047127,-13647.54446496,0.000196,2]
[363734251,1748853047137,-4670.73492366,0.00019656,2]
[363734253,1748853047147,-163.03316402,0.00019668,2]
[363734254,1748853047156,-500.0,0.00019699,2]
[363734256,1748853047166,-673.01,0.00019699,2]
[363734258,1748853047175,-1000.0,0.000197,2]
[363734260,1748853047185,-800.0,0.000197,7]
[363734262,1748853047194,-81885.12,0.000197,2]
[363734264,1748853047204,-155.0,0.00019712,2]
[363734266,1748853047214,-4670.73492366,0.00019717,2]
[363734268,1748853047223,-151.0,0.00019726,2]
[363734270,1748853047232,-151.0,0.00019726,2]
[363734272,1748853047242,-500.0,0.00019726,2]
[363734274,1748853047252,-151.0,0.00019726,2]
[363734276,1748853047263,-151.0,0.00019726,2]
[363734278,1748853047272,-314.10359042,0.00019726,2]
[363734280,1748853047281,-420.0,0.00019726,2]
[363734282,1748853047292,-461.99,0.00019726,2]
[363734284,1748853047305,-420.0,0.00019726,2]
[363734286,1748853047317,-420.0,0.00019726,2]
[363734287,1748853047327,-963.13,0.00019726,2]
[363734288,1748853047335,-547.32,0.00019726,2]
[363734289,1748853047344,-831.74,0.00019726,2]
[363734290,1748853047354,-420.0,0.00019726,2]
[363734291,1748853047363,-420.0,0.00019726,2]
[363734292,1748853047372,-366.56,0.00019726,2]
[363734293,1748853047381,-396.58,0.00019726,2]
[363734294,1748853047393,-420.0,0.00019726,2]
[363734295,1748853047402,-420.0,0.00019726,2]
[363734297,1748853047411,-420.0,0.00019726,2]
[363734299,1748853047420,-1681.64,0.00019726,2]
[363734301,1748853047430,-420.0,0.00019726,2]
[363734303,1748853047438,-253.13082702,0.00019726,2]
[363734305,1748853047448,-241.76356003,0.00019726,2]
[363734307,1748853047458,-420.0,0.00019726,2]
[363734309,1748853047468,-420.0,0.00019726,2]
[363734311,1748853047477,-420.0,0.00019726,2]
[363734313,1748853047486,-420.0,0.00019726,2]
[363734315,1748853047496,-686.48,0.00019726,2]
[363734316,1748853047505,-420.0,0.00019726,2]
[363734318,1748853047515,-526.68,0.00019726,2]
[363734320,1748853047525,-1223.01,0.00019726,2]
[363734322,1748853047535,-535.65,0.00019726,2]
[363734324,1748853047547,-420.0,0.00019726,2]
[363734326,1748853047557,-420.0,0.00019726,2]
[363734329,1748853047567,-420.0,0.00019726,2]
[363734331,1748853047576,-1903.86,0.00019726,2]
[363734333,1748853047585,-1297.59,0.00019726,2]
[363734334,1748853047595,-244.91771972,0.00019726,2]
[363734336,1748853047604,-420.0,0.00019726,2]
[363734338,1748853047613,-778.18,0.00019726,2]
[363734340,1748853047622,-420.0,0.00019726,2]
[363734342,1748853047631,-420.0,0.00019726,2]
[363734344,1748853047640,-420.0,0.00019726,2]
[363734346,1748853047648,-461.16,0.00019726,2]
[363734348,1748853047657,-420.0,0.00019726,2]
[363734350,1748853047667,-527.2,0.00019726,2]
[363734352,1748853047676,-420.0,0.00019726,2]
[363734354,1748853047685,-420.0,0.00019726,2]
[363734356,1748853047695,-572.57,0.00019726,2]
[363734358,1748853047704,-420.0,0.00019726,2]
[363734360,1748853047715,-2082.15,0.00019726,2]
[363734362,1748853047724,-420.0,0.00019726,2]
[363734364,1748853047733,-1644.46,0.00019726,2]
[363734366,1748853047742,-420.0,0.00019726,2]
[363734368,1748853047751,-420.0,0.00019726,2]
[363734370,1748853047761,-604.93,0.00019726,2]
[363734372,1748853047771,-420.0,0.00019726,2]
[363734374,1748853047781,-539.45,0.00019726,2]
[363734376,1748853047793,-1460.28,0.00019726,2]
[363734378,1748853047802,-5378.19,0.00019726,2]
[363734380,1748853047812,-420.0,0.00019726,2]
[363734382,1748853047824,-420.0,0.00019726,2]
[363734384,1748853047833,-783.28,0.00019726,2]
[363734386,1748853047843,-575.74,0.00019726,2]
[363734388,1748853047852,-420.0,0.00019726,2]
[363734390,1748853047861,-885.06,0.00019726,2]
[363734392,1748853047870,-420.0,0.00019726,2]
[363734394,1748853047879,-420.0,0.00019726,2]
[363734396,1748853047889,-558.16352786,0.00019726,2]
[363734398,1748853047898,-641.73,0.00019726,2]
[363734400,1748853047907,-420.0,0.00019726,2]
[363734402,1748853047917,-432.93,0.00019726,2]
[363734404,1748853047928,-420.0,0.00019726,2]